bitfinex/quotes_BTCUSD_20251016
["timestamp","ask_amount","ask_price","bid_price","bid_amount"]
[1760619935298,5.55723464,111560.0,111550.0,0.00067405]
[1760619936156,5.50898603,111560.0,111550.0,0.00067405]
[1760619936621,5.58419907,111560.0,111550.0,0.00067405]
[1760619938260,5.53595046,111560.0,111550.0,0.00067405]
[1760619939588,5.58419907,111560.0,111550.0,0.00067405]
[1760619941464,5.02337067,111560.0,111550.0,0.00067405]
[1760619941685,5.04003037,111560.0,111550.0,0.00067405]
[1760619941906,4.99178176,111560.0,111550.0,0.00067405]
[1760619942121,4.6757726,111560.0,111550.0,0.00067405]
[1760619942336,5.0157726,111560.0,111550.0,0.00067405]
[1760619942815,5.10545468,111560.0,111550.0,0.00067405]
[1760619943047,5.576601,111560.0,111550.0,0.00067405]
[1760619943267,5.60085877,111560.0,111550.0,0.00067405]
[1760619946914,5.55261016,111560.0,111550.0,0.00067405]
[1760619952038,5.55261182,111560.0,111550.0,0.00067405]
[1760619952666,5.60086043,111560.0,111550.0,0.00067405]
[1760619955063,5.63704271,111560.0,111550.0,1e-08]
[1760619955468,7.18315401,111560.0,111550.0,1e-08]
[1760619956338,7.1349054,111560.0,111550.0,1e-08]
[1760619957324,7.19902083,111560.0,111550.0,1e-08]
[1760619958189,0.51930787,111540.0,111530.0,0.01]
[1760619958404,5.80040022,111540.0,111530.0,0.01]
[1760619958623,5.80045265,111540.0,111530.0,0.01]
[1760619958814,5.80201448,111540.0,111530.0,0.01116917]
[1760619959251,5.85015075,111540.0,111530.0,0.01116917]
[1760619959675,5.88226214,111540.0,111530.0,0.01116917]
[1760619960339,5.85016183,111540.0,111530.0,0.01116917]
[1760619960970,5.94498211,111540.0,111530.0,0.01116917]
[1760619961199,5.94342028,111540.0,111530.0,0.01116917]
[1760619961411,5.89528401,111540.0,111530.0,0.01116917]
[1760619961865,5.92043921,111540.0,111530.0,0.01116917]
[1760619962478,5.89528401,111540.0,111530.0,0.01116917]
[1760619963182,5.95939944,111540.0,111530.0,0.01116917]
[1760619963393,5.085982,111520.0,111510.0,0.0004]
[1760619963610,4.93305755,111520.0,111510.0,0.0004]
[1760619964253,4.9346196,111520.0,111510.0,0.0004]
[1760619964716,5.02430972,111520.0,111510.0,0.0004]
[1760619965825,4.94073953,111520.0,111510.0,0.0004]
[1760619966248,4.96388272,111520.0,111510.0,0.0004]
[1760619968012,4.28008566,111520.0,111510.0,0.17975611]
[1760619968251,0.53485203,111520.0,111510.0,0.17975611]
[1760619968470,0.19485203,111520.0,111510.0,0.17975611]
[1760619968701,0.17812716,111520.0,111510.0,0.17975611]
[1760619969141,0.19487113,111520.0,111510.0,0.18092559]
[1760619969390,0.17812716,111520.0,111510.0,0.18092559]
[1760619970283,0.13087183,111520.0,111510.0,0.68538263]
[1760619970732,0.02087183,111520.0,111510.0,0.68538263]
[1760619970923,0.01930978,111520.0,111510.0,0.68538263]
[1760619971141,0.01930978,111520.0,111510.0,0.70894037]
[1760619971365,0.01930978,111520.0,111510.0,0.74512265]
[1760619971583,0.07564353,111540.0,111530.0,0.17932394]
[1760619971795,0.21239323,111540.0,111530.0,0.19725633]
[1760619972224,0.18022146,111540.0,111530.0,0.19725633]
[1760619973302,0.21239323,111540.0,111530.0,0.19725633]
[1760619973928,0.21239294,111540.0,111530.0,0.19725633]
[1760619974358,0.21239294,111540.0,111530.0,0.61202325]
[1760619974606,0.18022117,111540.0,111530.0,0.68378098]
[1760619974838,0.16347176,111540.0,111530.0,0.26901406]
[1760619975059,0.18022057,111540.0,111530.0,0.27001406]
[1760619975273,0.16347176,111540.0,111530.0,0.27001406]
[1760619975718,0.18021775,111540.0,111530.0,0.27001406]
[1760619976142,0.16347176,111540.0,111530.0,0.27001406]
[1760619976787,0.16347176,111540.0,111530.0,0.30180273]
[1760619977014,0.16347176,111540.0,111530.0,0.27001406]
[1760619977456,0.13935962,111540.0,111530.0,0.27001406]
[1760619978374,0.12004984,111540.0,111530.0,0.27001406]
[1760619980267,0.12004984,111540.0,111530.0,0.68478098]
[1760619980649,0.12004984,111540.0,111530.0,0.81128326]
[1760619984304,0.12004984,111540.0,111530.0,0.81028326]
[1760619984773,4.984e-05,111540.0,111530.0,0.81128326]
[1760619986312,4.984e-05,111540.0,111530.0,1.56605018]
[1760619986751,0.42130045,111590.0,111580.0,0.17924359]
[1760619986967,0.24733626,111590.0,111580.0,0.17924359]
[1760619987189,0.24733626,111590.0,111570.0,0.17924579]
[1760619987190,0.61868126,111590.0,111570.0,0.17924579]
[1760619987409,3.737174,111580.0,111570.0,0.17924579]
[1760619987620,3.88648378,111580.0,111570.0,0.17924579]
[1760619987845,0.14930978,111580.0,111570.0,0.17924579]
[1760619988064,0.30924359,111580.0,111570.0,0.17925965]
[1760619988294,0.72401051,111580.0,111550.0,0.21547407]
[1760619988523,4.33121044,111570.0,111550.0,0.27809595]
[1760619988745,0.72403644,111570.0,111560.0,0.17927572]
[1760619989406,0.13,111570.0,111560.0,0.19720329]
[1760619995175,0.13,111570.0,111560.0,0.28689341]
[1760619995393,0.13,111570.0,111560.0,0.35924584]
[1760620001543,0.30925965,111570.0,111560.0,0.08969012]
[1760620001764,0.30925965,111570.0,111550.0,0.00014946]
[1760620001765,0.17927572,111560.0,111550.0,0.00014946]
[1760620001989,0.29927572,111560.0,111550.0,0.00014946]
[1760620002207,4.76495767,111560.0,111550.0,0.00014946]
[1760620002691,4.03644972,111560.0,111550.0,0.00014946]
[1760620002910,4.37644972,111560.0,111550.0,0.00014946]
[1760620003134,5.10495767,111560.0,111550.0,0.00014946]
[1760620004259,5.1241915,111560.0,111550.0,0.00014946]
[1760620004896,5.12575309,111560.0,111550.0,0.00014946]
[1760620005323,5.12575309,111560.0,111550.0,0.00114946]
[1760620006210,5.21544321,111560.0,111550.0,0.00114946]
[1760620006868,5.24240437,111560.0,111550.0,0.00114946]
[1760620007322,0.34896458,111550.0,111520.0,0.00017251]
[1760620007552,4.25649794,111530.0,111520.0,0.00022235]
[1760620007799,5.12500589,111530.0,111520.0,0.00022235]
[1760620008910,4.39649794,111530.0,111520.0,0.17956237]
[1760620009395,0.14,111530.0,111520.0,0.18056237]
[1760620009847,0.14,111530.0,111520.0,0.27025249]
[1760620010066,0.14,111530.0,111520.0,0.30643477]
[1760620010727,0.14,111530.0,111520.0,0.27025249]
[1760620011615,0.14,111530.0,111520.0,0.26925249]
[1760620012060,0.14,111530.0,111520.0,0.27025249]
[1760620012494,0.31932394,111530.0,111520.0,0.09091247]
[1760620012718,0.31932394,111530.0,111520.0,0.27025249]
[1760620013171,0.14,111530.0,111520.0,0.27025249]
[1760620013790,0.31932394,111530.0,111520.0,0.00122235]
[1760620014015,0.31932394,111530.0,111520.0,0.18056237]
[1760620014585,0.14,111530.0,111520.0,0.18056237]
[1760620014990,0.14156179,111530.0,111520.0,0.18056237]
[1760620017291,0.32088573,111530.0,111520.0,0.18056237]
[1760620017498,4.39805973,111530.0,111520.0,0.00122235]
[1760620017952,4.1983003,111530.0,111520.0,0.00122235]
[1760620018928,4.1983003,111530.0,111520.0,0.01723101]
[1760620019142,4.1983003,111530.0,111520.0,0.19657103]
[1760620019371,0.4611263,111530.0,111520.0,0.19153178]
[1760620020476,0.4611263,111530.0,111520.0,0.18056237]
[1760620020954,0.35,111530.0,111520.0,0.18056237]
[1760620021380,0.52932394,111530.0,111520.0,0.18056237]
[1760620022252,0.52932394,111530.0,111520.0,0.00122235]
[1760620022461,0.52932394,111530.0,111520.0,0.01915635]
[1760620022674,0.52932394,111530.0,111520.0,0.19849637]
[1760620022900,0.52932394,111530.0,111520.0,0.18056237]
[1760620023369,0.52932394,111530.0,111520.0,0.00122235]
[1760620023586,0.52932394,111530.0,111520.0,0.01915635]
[1760620024734,4.26649794,111530.0,111520.0,0.00122235]
[1760620025184,5.08468797,111530.0,111520.0,0.00122235]
[1760620025400,4.91722549,111530.0,111520.0,0.00122235]
[1760620025609,4.94419351,111530.0,111520.0,0.00122235]
[1760620026461,0.03696802,111530.0,111520.0,0.17956237]
[1760620026673,0.35,111530.0,111520.0,0.17956237]
[1760620027135,0.52932394,111530.0,111520.0,0.17956237]
[1760620027557,0.35,111530.0,111520.0,0.17956237]
[1760620029058,0.01,111530.0,111520.0,0.17956237]
[1760620029290,0.01,111530.0,111520.0,0.19749637]
[1760620029502,0.01,111530.0,111520.0,0.19849637]
[1760620029717,0.01,111530.0,111520.0,0.18056237]
[1760620031205,0.18932394,111530.0,111520.0,0.18056237]
[1760620031420,0.60389391,111530.0,111520.0,0.18056237]
[1760620032934,0.01,111530.0,111520.0,0.18056237]
[1760620033136,0.42456997,111530.0,111520.0,0.18056237]
[1760620033605,0.01,111530.0,111520.0,0.18056237]
[1760620034210,0.42613176,111530.0,111520.0,0.18056237]
[1760620037154,0.6054557,111530.0,111520.0,0.18056237]
[1760620037356,0.9454557,111530.0,111520.0,0.18056237]
[1760620037570,0.9647607,111530.0,111520.0,0.18056237]
[1760620037736,0.78543676,111530.0,111520.0,0.18056237]
[1760620037942,0.37086679,111530.0,111520.0,0.18056237]
[1760620038219,0.78543676,111530.0,111520.0,0.18056237]
[1760620038821,0.9647607,111530.0,111520.0,0.00122235]
[1760620038999,0.9647607,111530.0,111520.0,0.19849637]
[1760620039381,0.9647607,111530.0,111520.0,0.00122235]
[1760620039613,5.62076476,111530.0,111520.0,0.00122235]
[1760620039838,5.22874514,111530.0,111520.0,0.00122235]
[1760620040055,5.25571447,111530.0,111520.0,0.00122235]
[1760620040273,5.34539655,111530.0,111520.0,0.00122235]
[1760620040923,5.34539655,111530.0,111520.0,0.00022235]
[1760620042647,4.42657453,111530.0,111520.0,0.00022235]
[1760620042851,5.25727652,111530.0,111520.0,0.00022235]
[1760620051203,5.23316438,111530.0,111520.0,0.00022235]
[1760620051657,4.2247005,111530.0,111520.0,0.00022235]
[1760620051910,0.44543702,111530.0,111520.0,0.17956237]
[1760620052379,0.42613202,111530.0,111520.0,0.17956237]
[1760620052598,0.60389391,111530.0,111520.0,0.17956237]
[1760620052821,0.62319048,111530.0,111520.0,0.17956237]
[1760620053026,0.62319048,111530.0,111520.0,0.19749637]
[1760620053241,0.60389391,111530.0,111520.0,0.19749637]
[1760620053451,0.62319101,111530.0,111520.0,0.19749637]
[1760620053840,0.62319101,111530.0,111520.0,0.19849637]
[1760620054053,0.62319101,111530.0,111520.0,0.18056237]
[1760620054283,0.60389391,111530.0,111520.0,0.18056237]
[1760620054506,0.42456997,111530.0,111520.0,0.18056237]
[1760620055968,0.01,111530.0,111520.0,0.18056237]
[1760620056411,0.42456997,111530.0,111520.0,0.18056237]
[1760620057997,0.42456997,111530.0,111520.0,0.59513234]
[1760620057998,0.01,111530.0,111520.0,0.59513234]
[1760620058222,0.01,111530.0,111520.0,0.68482246]
[1760620060226,0.01,111530.0,111520.0,1.47557471]
[1760620060461,0.0717521,111560.0,111550.0,0.17929179]
[1760620060708,0.2017521,111560.0,111550.0,0.19722096]
[1760620060923,0.13,111560.0,111550.0,0.19722096]
[1760620061394,0.72384569,111560.0,111550.0,0.19722096]
[1760620061606,0.54456997,111560.0,111550.0,0.19722096]
[1760620061830,0.13,111560.0,111550.0,0.19722096]
[1760620062072,0.54456997,111560.0,111550.0,0.19722096]
[1760620062307,0.54456997,111560.0,111550.0,0.19822096]
[1760620062534,0.13,111560.0,111550.0,0.18029179]
[1760620063022,0.54456997,111560.0,111550.0,0.18029179]
[1760620063238,0.72384569,111560.0,111550.0,0.18029179]
[1760620063460,0.54456997,111560.0,111550.0,0.18029179]
[1760620067330,0.13,111560.0,111550.0,0.18029179]
[1760620069274,0.54456997,111560.0,111550.0,0.18029179]
[1760620072215,0.13,111560.0,111550.0,0.18029179]
[1760620073507,0.54456997,111560.0,111550.0,0.18029179]
[1760620074519,0.72384569,111560.0,111550.0,0.18029179]
[1760620074746,0.95913994,111560.0,111550.0,0.18029179]
[1760620074971,0.95913994,111560.0,111550.0,0.001]
[1760620074972,5.21558966,111560.0,111550.0,0.001]
[1760620075419,5.21715117,111560.0,111550.0,0.001]
[1760620075639,5.21715117,111560.0,111550.0,0.18029179]
[1760620075866,5.21715117,111560.0,111550.0,0.001]
[1760620080977,5.21715117,111560.0,111550.0,0.18029179]
[1760620081193,4.8025812,111560.0,111550.0,0.18029179]
[1760620082081,4.38801123,111560.0,111550.0,0.18029179]
[1760620082296,4.8025812,111560.0,111550.0,0.18029179]
[1760620082507,4.62330548,111560.0,111550.0,0.18029179]
[1760620083834,4.20873551,111560.0,111550.0,0.18029179]
[1760620084076,4.62330548,111560.0,111550.0,0.18029179]
[1760620084318,4.8025812,111560.0,111550.0,0.18029179]
[1760620085564,4.38801123,111560.0,111550.0,0.18029179]
[1760620086713,4.8023894,111560.0,111550.0,0.18029179]
[1760620087365,4.8216797,111560.0,111550.0,0.18029179]
[1760620089661,4.8216797,111560.0,111550.0,0.001]
[1760620089884,4.8216797,111560.0,111550.0,0.19822096]
[1760620090093,4.8216797,111560.0,111550.0,0.18029179]
[1760620091168,4.57252216,111560.0,111550.0,0.18029179]
[1760620091383,4.3523894,111560.0,111550.0,0.18029179]
[1760620092522,4.3523894,111560.0,111550.0,0.001]
[1760620092742,4.3523894,111560.0,111550.0,0.01892917]
[1760620093202,4.3523894,111560.0,111550.0,0.19822096]
[1760620093437,4.3523894,111560.0,111550.0,0.18029179]
[1760620093855,4.3523894,111560.0,111550.0,0.001]
[1760620094054,4.3523894,111560.0,111550.0,0.01892917]
[1760620097807,4.3523894,111560.0,111550.0,0.19822096]
[1760620098008,4.3523894,111560.0,111550.0,0.18029179]
[1760620098695,3.93801123,111560.0,111550.0,0.18029179]
[1760620098911,4.3523894,111560.0,111550.0,0.18029179]
[1760620099792,4.3523894,111560.0,111550.0,0.001]
[1760620100018,4.3523894,111560.0,111550.0,0.19822096]
[1760620100238,4.3523894,111560.0,111550.0,0.18029179]
[1760620101339,4.37168786,111560.0,111550.0,0.001]
[1760620101553,4.37168786,111560.0,111550.0,0.01892917]
[1760620101771,3.95730969,111560.0,111550.0,0.19822096]
[1760620102001,3.95730969,111560.0,111550.0,0.18029179]
[1760620102226,4.37168786,111560.0,111550.0,0.18029179]
[1760620113411,4.37168786,111560.0,111550.0,0.001]
[1760620113633,4.37168786,111560.0,111550.0,0.01892917]
[1760620115579,4.77996529,111560.0,111550.0,0.001]
[1760620117455,4.80251592,111560.0,111550.0,0.001]
[1760620118304,4.77840378,111560.0,111550.0,0.001]
[1760620119448,5.28247207,111560.0,111550.0,0.001]
[1760620120577,4.8680939,111560.0,111550.0,0.001]
[1760620120789,4.79981647,111560.0,111550.0,0.001]
[1760620120994,4.80137805,111560.0,111550.0,0.001]
[1760620121211,4.79981647,111560.0,111550.0,0.001]
[1760620121419,5.21419464,111560.0,111550.0,0.001]
[1760620121640,5.34473881,111560.0,111550.0,0.001]
[1760620121851,5.37678621,111560.0,111550.0,0.001]
[1760620122294,5.34473881,111560.0,111550.0,0.001]
[1760620122518,4.67087611,111530.0,111520.0,0.00022235]
[1760620122729,4.81087611,111530.0,111520.0,0.00022235]
[1760620124032,4.81243807,111530.0,111520.0,0.00022235]
[1760620124827,4.83940512,111530.0,111520.0,0.00022235]
[1760620125223,4.9290872,111530.0,111520.0,0.00122235]
[1760620125633,5.43315549,111530.0,111520.0,0.00122235]
[1760620128531,5.01877732,111530.0,111520.0,0.00122235]
[1760620129145,4.92909524,111530.0,111520.0,0.00122235]
[1760620130367,4.87545089,111530.0,111520.0,0.00122235]
[1760620136763,5.28982906,111530.0,111520.0,0.00122235]
[1760620137403,5.30906633,111530.0,111520.0,0.00122235]
[1760620139152,5.30906633,111530.0,111520.0,0.00022235]
[1760620139407,5.39874841,111530.0,111520.0,0.00022235]
[1760620140287,5.42286019,111530.0,111520.0,0.00022235]
[1760620140519,5.42129823,111530.0,111520.0,0.00022235]
[1760620140734,5.45748051,111530.0,111520.0,0.00022235]
[1760620140951,5.49931895,111530.0,111520.0,0.00022235]
[1760620141585,5.53136635,111530.0,111520.0,0.00022235]
[1760620142057,5.53236635,111530.0,111520.0,0.00022235]
[1760620143024,5.50722545,111530.0,111520.0,0.00022235]
[1760620143262,5.52128926,111530.0,111520.0,0.00022235]
[1760620143471,5.52285147,111530.0,111520.0,0.00022235]
[1760620144123,5.49873969,111530.0,111520.0,0.00022235]
[1760620146162,5.54699734,111530.0,111520.0,0.00022235]
[1760620147494,5.96304417,111530.0,111520.0,0.00022235]
[1760620148400,6.37797856,111530.0,111520.0,0.00022235]
[1760620148616,6.34593116,111530.0,111520.0,0.00022235]
[1760620149276,3.91653011,111510.0,111500.0,4.99946012]
[1760620149502,5.49007723,111510.0,111500.0,4.99946012]
[1760620149942,5.49163949,111510.0,111500.0,4.99946012]
[1760620150156,5.51861515,111510.0,111500.0,4.99946012]
[1760620150351,6.32563181,111510.0,111500.0,4.99946012]
[1760620150577,7.12501497,111510.0,111500.0,3.0269349]
[1760620150812,7.24985066,111510.0,111500.0,2.67101822]
[1760620151049,7.2482884,111510.0,111500.0,2.50569213]
[1760620151284,7.2482884,111510.0,111500.0,2.28564178]
[1760620151490,7.26446581,111510.0,111500.0,1.39552426]
[1760620151701,7.24828305,111510.0,111500.0,1.23256299]
[1760620151919,7.22600742,111510.0,111500.0,1.20560882]
[1760620152153,7.19393253,111510.0,111500.0,0.75847612]
[1760620152383,7.30091732,111510.0,111500.0,0.39666887]
[1760620152587,4.29274456,111490.0,111480.0,0.0004]
[1760620152791,7.05203399,111490.0,111480.0,0.0004]
[1760620153438,7.07902181,111490.0,111480.0,0.0004]
[1760620153667,7.09465489,111490.0,111480.0,0.0004]
[1760620154101,7.11979579,111490.0,111480.0,0.0004]
[1760620154727,7.11979579,111490.0,111470.0,1e-08]
[1760620154728,4.27500389,111480.0,111470.0,1e-08]
[1760620154933,4.95959866,111480.0,111470.0,1e-08]
[1760620155352,7.03427061,111480.0,111470.0,1e-08]
[1760620156266,5.78946744,111480.0,111470.0,1e-08]
[1760620156480,5.76749121,111480.0,111470.0,1e-08]
[1760620158426,5.35255682,111480.0,111470.0,1e-08]
[1760620160197,5.369217,111480.0,111470.0,0.00292489]
[1760620160406,5.40119449,111480.0,111470.0,0.00292489]
[1760620160619,4.19514343,111480.0,111470.0,0.00292489]
[1760620160835,4.16316594,111480.0,111470.0,0.00292489]
[1760620161047,4.91810033,111480.0,111470.0,0.00292489]
[1760620161256,4.95007782,111480.0,111470.0,0.00292489]
[1760620162342,5.36501221,111480.0,111470.0,0.00292489]
[1760620162612,5.38129237,111480.0,111470.0,0.00292489]
[1760620163251,4.91810033,111480.0,111470.0,0.00292489]
[1760620163461,4.7866612,111480.0,111470.0,0.00292489]
[1760620163680,4.96606557,111480.0,111470.0,0.00292489]
[1760620164736,4.96762835,111480.0,111470.0,0.00292489]
[1760620165611,4.55269396,111480.0,111470.0,0.00292489]
[1760620165824,5.38256274,111480.0,111470.0,0.00292489]
[1760620167363,5.3345975,111480.0,111470.0,0.00292489]
[1760620167578,4.91966311,111480.0,111470.0,0.00292489]
[1760620168684,4.50472872,111480.0,111470.0,0.00292489]
[1760620168915,4.50468625,111480.0,111470.0,0.00292489]
[1760620169176,4.96604501,111480.0,111470.0,0.00292489]
[1760620169395,4.91805786,111480.0,111470.0,0.00292489]
[1760620169609,4.96605586,111480.0,111470.0,0.00292489]
[1760620172242,4.9676186,111480.0,111470.0,0.00292489]
[1760620172461,4.9196206,111480.0,111470.0,0.00292489]
[1760620172683,4.96763177,111480.0,111470.0,0.00292489]
[1760620173552,3.91659447,111470.0,111460.0,0.41493439]
[1760620173770,4.13047028,111470.0,111460.0,0.41493439]
[1760620173977,3.737174,111460.0,111450.0,0.24382384]
[1760620174241,0.18120857,111460.0,111450.0,0.65875823]
[1760620174461,0.18120857,111460.0,111450.0,0.64978705]
[1760620174658,0.18277137,111460.0,111450.0,0.64978705]
[1760620174879,0.18290574,111460.0,111450.0,0.64978705]
[1760620176017,0.18290574,111460.0,111450.0,0.73946913]
[1760620176880,0.17492646,111460.0,111450.0,0.73946913]
[1760620178427,0.20694023,111460.0,111450.0,0.73946913]
[1760620180336,0.18290574,111460.0,111450.0,0.73946913]
[1760620180761,0.18290574,111460.0,111450.0,0.74063956]
[1760620181600,0.20701594,111460.0,111450.0,0.23602309]
[1760620181866,0.20701594,111460.0,111450.0,0.65095748]
[1760620186417,0.17500217,111460.0,111450.0,0.65095748]
[1760620188639,4.10129612,111470.0,111460.0,0.59437095]
[1760620188855,4.41903075,111470.0,111460.0,0.59486967]
[1760620189074,4.41903075,111470.0,111460.0,0.17993528]
[1760620189293,4.23961028,111470.0,111460.0,0.17993528]
[1760620189523,4.23961028,111470.0,111460.0,0.59486967]
[1760620189727,4.41903075,111470.0,111460.0,0.59486967]
[1760620189944,4.41746795,111470.0,111460.0,0.59486967]
[1760620190775,4.41746795,111470.0,111460.0,0.17993528]
[1760620191620,4.83240234,111470.0,111460.0,0.00049872]
[1760620191842,4.83240372,111470.0,111460.0,0.00049872]
[1760620192268,4.81565098,111470.0,111460.0,0.00049872]
[1760620192471,4.40071659,111470.0,111460.0,0.00049872]
[1760620192873,4.40227937,111470.0,111460.0,0.00049872]
[1760620193280,4.37815725,111470.0,111460.0,0.00049872]
[1760620194101,4.37815725,111470.0,111460.0,0.00108388]
[1760620194967,4.79309164,111470.0,111460.0,0.00108388]
[1760620195607,4.19873678,111470.0,111460.0,0.59545483]
[1760620195823,0.46156278,111470.0,111460.0,0.59545483]
[1760620197281,0.46156278,111470.0,111460.0,0.18052044]
[1760620197486,0.46156278,111470.0,111460.0,0.59545483]
[1760620197697,0.64098325,111470.0,111460.0,0.18052044]
[1760620197906,0.64098325,111470.0,111460.0,0.59545483]
[1760620198116,1.05591764,111470.0,111460.0,0.18052044]
[1760620198582,1.05591764,111470.0,111460.0,0.00108388]
[1760620199176,1.05591764,111470.0,111460.0,0.01902753]
[1760620199486,0.64098325,111470.0,111460.0,0.01902753]
[1760620199702,1.05591764,111470.0,111460.0,0.00108388]
[1760620200354,4.79309164,111470.0,111460.0,0.00108388]
[1760620200556,5.33377714,111470.0,111460.0,0.00108388]
[1760620200821,5.74871153,111470.0,111460.0,1e-08]
[1760620201047,6.13444293,111470.0,111460.0,1e-08]
[1760620201269,6.13288015,111470.0,111460.0,1e-08]
[1760620201499,0.51945266,111450.0,111440.0,0.05045623]
[1760620201750,5.75092563,111450.0,111440.0,1e-08]
[1760620201985,5.85361889,111450.0,111440.0,1e-08]
[1760620202445,5.38891943,111450.0,111440.0,1e-08]
[1760620202673,5.43694026,111450.0,111440.0,1e-08]
[1760620203126,5.43794026,111450.0,111440.0,1e-08]
[1760620203346,5.85287465,111450.0,111440.0,1e-08]
[1760620203829,5.85443801,111450.0,111440.0,1e-08]
[1760620204961,5.88143156,111450.0,111440.0,1e-08]
[1760620205413,5.83341073,111450.0,111440.0,1e-08]
[1760620205861,4.25664277,111440.0,111430.0,0.09883666]
[1760620206082,4.52238416,111440.0,111430.0,0.09883666]
[1760620206975,4.52394753,111440.0,111430.0,0.09883666]
[1760620207194,4.52494753,111440.0,111430.0,0.09883666]
[1760620207410,5.76969972,111440.0,111430.0,0.09883666]
[1760620207630,5.79484061,111440.0,111430.0,0.1005927]
[1760620208299,5.77553525,111440.0,111430.0,0.1005927]
[1760620208537,5.77806587,111440.0,111430.0,0.1005927]
[1760620209174,5.81424815,111440.0,111430.0,0.1005927]
[1760620209635,5.4147121,111440.0,111430.0,0.1005927]
[1760620210342,4.25665887,111430.0,111420.0,0.05]
[1760620210560,5.34294926,111430.0,111420.0,0.05]
[1760620210776,5.36809015,111430.0,111420.0,0.05]
[1760620211008,4.53689771,111430.0,111420.0,0.05]
[1760620211235,5.34294926,111430.0,111420.0,0.05]
[1760620211451,5.36994711,111430.0,111420.0,0.05]
[1760620212348,5.33376483,111430.0,111420.0,0.05]
[1760620212787,5.30676698,111430.0,111420.0,0.05]
[1760620213966,4.89273432,111430.0,111420.0,0.05]
[1760620214643,4.96833054,111430.0,111420.0,0.05]
[1760620214869,4.55273432,111430.0,111420.0,0.05]
[1760620215344,4.71324945,111430.0,111420.0,0.22950098]
[1760620216038,4.71324945,111430.0,111420.0,0.23008645]
[1760620216337,4.89273432,111430.0,111420.0,0.05058547]
[1760620218777,4.71324945,111430.0,111420.0,0.05058547]
[1760620218986,4.89273432,111430.0,111420.0,0.05058547]
[1760620219417,4.71324945,111430.0,111420.0,0.23008645]
[1760620219636,4.71168589,111430.0,111420.0,0.23008645]
[1760620219855,4.89117076,111430.0,111420.0,0.23008645]
[1760620220108,4.20639955,111430.0,111420.0,0.23008645]
[1760620220530,3.86639955,111430.0,111420.0,0.23008645]
[1760620220752,0.12922555,111430.0,111420.0,0.23008645]
[1760620220974,0.52559622,111430.0,111420.0,0.23008645]
[1760620221198,4.28199577,111430.0,111420.0,0.23008645]
[1760620221419,4.80148064,111430.0,111420.0,0.05058547]
[1760620222089,4.89117076,111430.0,111420.0,0.05058547]
[1760620222316,4.92319599,111430.0,111420.0,0.05058547]
[1760620222536,4.92475934,111430.0,111420.0,0.05058547]
[1760620226226,4.97278017,111430.0,111420.0,0.05058547]
[1760620227398,4.97278017,111430.0,111420.0,0.23008645]
[1760620228040,4.70360518,111430.0,111420.0,0.23008645]
[1760620229353,4.68834857,111430.0,111420.0,0.23008645]
[1760620229565,0.55101098,111430.0,111420.0,0.23008645]
[1760620229776,0.21101098,111430.0,111420.0,0.23008645]
[1760620229989,0.22778232,111430.0,111420.0,0.23008645]
[1760620230205,0.22621897,111430.0,111420.0,0.23008645]
[1760620230659,0.20944763,111430.0,111420.0,0.23008645]
[1760620230878,0.1614268,111430.0,111420.0,0.23008645]
[1760620231097,0.1781975,111430.0,111420.0,0.23008645]
[1760620231575,0.20944763,111430.0,111420.0,0.23008645]
[1760620232252,0.2262254,111430.0,111420.0,0.18008645]
[1760620232702,4.86627924,111430.0,111420.0,0.00058547]
[1760620233041,4.81835277,111430.0,111420.0,0.00058547]
[1760620233255,4.90960629,111430.0,111420.0,0.00058547]
[1760620236557,4.90960629,111430.0,111420.0,0.18008645]
[1760620237444,4.90960629,111430.0,111420.0,0.00058547]
[1760620238510,4.90960629,111430.0,111420.0,0.18008645]
[1760620239155,4.90960629,111430.0,111420.0,0.00058547]
[1760620241850,4.90960629,111430.0,111420.0,0.18008645]
[1760620242066,4.90960629,111430.0,111420.0,0.00058547]
[1760620242282,4.90960629,111430.0,111420.0,0.18008645]
[1760620242718,4.90960629,111430.0,111420.0,0.00058547]
[1760620242925,4.9579427,111430.0,111420.0,0.18008645]
[1760620243374,4.9579427,111430.0,111420.0,0.00058547]
[1760620244048,4.9579427,111430.0,111420.0,0.18008645]
[1760620244738,4.9579427,111430.0,111420.0,0.00058547]
[1760620246471,5.37353892,111430.0,111420.0,0.00058547]
[1760620246696,4.9579427,111430.0,111420.0,0.00058547]
[1760620249371,4.99017717,111430.0,111420.0,0.00058547]
[1760620251579,5.40577339,111430.0,111420.0,0.00058547]
[1760620251784,5.37353892,111430.0,111420.0,0.00058547]
[1760620252237,5.40577789,111430.0,111420.0,0.00058547]
[1760620253622,4.99018167,111430.0,111420.0,0.00058547]
[1760620254473,4.94184526,111430.0,111420.0,0.00058547]
[1760620254724,4.94184526,111430.0,111420.0,0.50058547]
[1760620255352,4.96602274,111430.0,111420.0,0.50058547]
[1760620256324,4.96603936,111430.0,111420.0,0.50058547]
[1760620260432,4.96604207,111430.0,111420.0,0.50058547]
[1760620260647,4.71186031,111430.0,111420.0,0.50058547]
[1760620260868,4.76186031,111430.0,111420.0,0.50058547]
[1760620270703,4.79409928,111430.0,111420.0,0.50058547]
[1760620271468,5.18536882,111430.0,111420.0,0.50058547]
[1760620276978,4.35432558,111430.0,111420.0,0.50058547]
[1760620277244,5.18536882,111430.0,111420.0,0.50058547]
[1760620279635,5.20955671,111430.0,111420.0,0.50058547]
[1760620279836,5.20955671,111430.0,111420.0,0.68008645]
[1760620280257,5.18536882,111430.0,111420.0,0.68008645]
[1760620280472,5.18536882,111430.0,111420.0,0.50058547]
[1760620281775,5.23370523,111430.0,111420.0,0.50058547]
[1760620286036,5.23371049,111430.0,111420.0,0.50058547]
[1760620286897,5.18537408,111430.0,111420.0,0.50058547]
[1760620289012,5.16605195,111430.0,111420.0,0.50058547]
[1760620289223,5.18540249,111430.0,111420.0,0.50058547]
[1760620290505,4.19712705,111430.0,111420.0,0.56913571]
[1760620290798,4.18907924,111430.0,111420.0,0.68008645]
[1760620291009,4.56360956,111430.0,111420.0,0.68008645]
[1760620291214,4.56204616,111430.0,111420.0,0.68008645]
[1760620292060,4.56204616,111430.0,111420.0,0.68108645]
[1760620292702,0.82487216,111430.0,111420.0,0.68108645]
[1760620292921,0.40935054,111430.0,111420.0,1.18320841]
[1760620293132,0.06935054,111430.0,111420.0,1.18320841]
[1760620293377,0.05,111430.0,111420.0,0.76768679]
[1760620293585,0.46552162,111430.0,111420.0,0.76768679]
[1760620293801,0.48487216,111430.0,111420.0,0.68108645]
[1760620296187,0.06935054,111430.0,111420.0,0.68108645]
[1760620296428,0.46552162,111430.0,111420.0,0.68108645]
[1760620296636,0.48487216,111430.0,111420.0,0.68108645]
[1760620297096,0.06935054,111430.0,111420.0,0.68108645]
[1760620297299,0.05,111430.0,111420.0,0.68108645]
[1760620297733,0.05,111430.0,111420.0,0.77076853]
[1760620298159,0.05,111430.0,111420.0,1.27598027]
[1760620298381,0.05,111430.0,111420.0,0.86045865]